[Event "FIDE U16 Olympiad_boards_1-80"]
[Site "Eindhoven, Netherlands"]
[Date "2023.08.14"]
[Round "2.53"]
[White "Piliposyan, Robert"]
[Black "Hobson, Kenneth"]
[Result "1-0"]
[TimeControl "2700+10"]
[WhiteElo "2265"]
[BlackElo "1851"]

1. d4 {[%clk 00:45:17]} {[%emt 00:00:02]} Nf6 {[%clk 00:45:18]} {[%emt
00:00:03]} 2. c4 {[%clk 00:45:25]} {[%emt 00:00:02]} e6 {[%clk 00:45:19]}
{[%emt 00:00:08]} 3. Nf3 {[%clk 00:45:33]} {[%emt 00:00:02]} d5 {[%clk
00:45:25]} {[%emt 00:00:04]} 4. Nc3 {[%clk 00:45:41]} {[%emt 00:00:02]} Bb4
{[%clk 00:45:31]} {[%emt 00:00:04]} 5. cxd5 {[%clk 00:45:50]} {[%emt 00:00:02]}
exd5 {[%clk 00:45:25]} {[%emt 00:00:16]} 6. Bf4 {[%clk 00:45:58]} {[%emt
00:00:01]} Nbd7 {[%clk 00:44:31]} {[%emt 00:01:05]} 7. e3 {[%clk 00:44:04]}
{[%emt 00:02:04]} Ne4 {[%clk 00:43:05]} {[%emt 00:01:36]} 8. Rc1 {[%clk
00:43:26]} {[%emt 00:00:47]} g5 {[%clk 00:42:00]} {[%emt 00:01:16]} 9. Be5
{[%clk 00:41:35]} {[%emt 00:02:01]} f6 {[%clk 00:39:55]} {[%emt 00:02:14]} 10.
Bg3 {[%clk 00:40:54]} {[%emt 00:00:50]} h5 {[%clk 00:39:10]} {[%emt 00:00:56]}
11. Qb3 {[%clk 00:40:11]} {[%emt 00:00:53]} Bxc3+ {[%clk 00:38:04]} {[%emt
00:01:17]} 12. bxc3 {[%clk 00:40:04]} {[%emt 00:00:17]} Nb6 {[%clk 00:37:35]}
{[%emt 00:00:38]} 13. h4 {[%clk 00:39:18]} {[%emt 00:00:57]} Nxg3 {[%clk
00:34:46]} {[%emt 00:02:59]} 14. fxg3 {[%clk 00:39:26]} {[%emt 00:00:01]} g4
{[%clk 00:32:43]} {[%emt 00:02:14]} 15. Ng1 {[%clk 00:39:24]} {[%emt 00:00:11]}
Qe7 {[%clk 00:31:57]} {[%emt 00:00:57]} 16. Kf2 {[%clk 00:37:04]} {[%emt
00:02:29]} Bf5 {[%clk 00:30:18]} {[%emt 00:01:49]} 17. Qb4 {[%clk 00:35:11]}
{[%emt 00:02:04]} Qe6 {[%clk 00:28:01]} {[%emt 00:02:27]} 18. Re1 {[%clk
00:32:50]} {[%emt 00:02:31]} O-O-O {[%clk 00:24:06]} {[%emt 00:04:04]} 19. Ne2
{[%clk 00:32:43]} {[%emt 00:00:17]} Kb8 {[%clk 00:21:26]} {[%emt 00:02:51]} 20.
Nf4 {[%clk 00:32:49]} {[%emt 00:00:03]} Qf7 {[%clk 00:20:47]} {[%emt 00:00:49]}
21. a4 {[%clk 00:32:40]} {[%emt 00:00:20]} Nc8 {[%clk 00:20:22]} {[%emt
00:00:34]} 22. Kg1 {[%clk 00:29:17]} {[%emt 00:03:32]} Nd6 {[%clk 00:20:08]}
{[%emt 00:00:25]} 23. Kh2 {[%clk 00:28:46]} {[%emt 00:00:42]} Rhe8 {[%clk
00:18:52]} {[%emt 00:01:25]} 24. Bb5 {[%clk 00:28:33]} {[%emt 00:00:23]} Bd7
{[%clk 00:17:54]} {[%emt 00:01:08]} 25. Bd3 {[%clk 00:27:33]} {[%emt 00:01:09]}
Bf5 {[%clk 00:17:09]} {[%emt 00:00:57]} 26. Bb5 {[%clk 00:26:58]} {[%emt
00:00:45]} Bd7 {[%clk 00:17:15]} {[%emt 00:00:03]} 27. Re2 {[%clk 00:26:19]}
{[%emt 00:00:49]} Bxb5 {[%clk 00:15:10]} {[%emt 00:02:16]} 28. axb5 {[%clk
00:26:24]} {[%emt 00:00:05]} Nc4 {[%clk 00:12:36]} {[%emt 00:02:43]} 29. Ra1
{[%clk 00:25:56]} {[%emt 00:00:38]} Rxe3 {[%clk 00:09:50]} {[%emt 00:02:57]} 30.
Rxe3 {[%clk 00:24:41]} {[%emt 00:01:24]} Nxe3 {[%clk 00:09:58]} {[%emt
00:00:02]} 31. Qa4 {[%clk 00:24:50]} {[%emt 00:00:02]} Rd6 {[%clk 00:08:56]}
{[%emt 00:01:11]} 32. Qxa7+ {[%clk 00:24:56]} {[%emt 00:00:04]} Kc8 {[%clk
00:09:06]} {[%emt 00:00:01]} 33. Qa8+ {[%clk 00:24:40]} {[%emt 00:00:26]} Kd7
{[%clk 00:09:14]} 34. Qh8 {[%clk 00:24:39]} {[%emt 00:00:11]} Rb6 {[%clk
00:08:19]} {[%emt 00:01:06]} 35. Re1 {[%clk 00:23:30]} {[%emt 00:01:18]} Nf5
{[%clk 00:07:34]} {[%emt 00:00:56]} 36. Nxd5 {[%clk 00:22:46]} {[%emt
00:00:54]} Re6 {[%clk 00:06:54]} {[%emt 00:00:49]} 37. Rf1 {[%clk 00:22:21]}
{[%emt 00:00:34]} Ng7 {[%clk 00:05:14]} {[%emt 00:01:51]} 38. Qb8 {[%clk
00:22:09]} {[%emt 00:00:21]} Ne8 {[%clk 00:05:04]} {[%emt 00:00:21]} 39. Qxb7
{[%clk 00:22:05]} {[%emt 00:00:15]} Rd6 {[%clk 00:05:10]} {[%emt 00:00:03]} 40.
c4 {[%clk 00:21:51]} {[%emt 00:00:24]} Qe6 {[%clk 00:04:49]} {[%emt 00:00:30]}
41. b6 {[%clk 00:21:48]} {[%emt 00:00:14]} Rxd5 {[%clk 00:04:09]} {[%emt
00:00:50]} 42. bxc7 {[%clk 00:21:48]} {[%emt 00:00:10]} Nxc7 {[%clk 00:04:06]}
{[%emt 00:00:13]} 43. cxd5 {[%clk 00:21:56]} {[%emt 00:00:02]} Qxd5 {[%clk
00:04:14]} {[%emt 00:00:02]} 44. Qxd5+ {[%clk 00:22:05]} {[%emt 00:00:02]} Nxd5
{[%clk 00:04:23]} {[%emt 00:00:01]} 45. Rf5 {[%clk 00:22:14]} Ke6 {[%clk
00:04:21]} {[%emt 00:00:12]} 46. Rxh5 {[%clk 00:22:22]} {[%emt 00:00:02]} 1-0

[Event "FIDE U16 Olympiad_boards_1-80"]
[Site "Eindhoven, Netherlands"]
[Date "2023.08.14"]
[Round "2.54"]
[White "Khoury, Theo"]
[Black "Gasparyan, Erik R."]
[Result "0-1"]
[TimeControl "2700+10"]
[WhiteElo "1865"]
[BlackElo "2272"]

1. e4 {[%clk 00:45:15]} {[%emt 00:00:04]} c6 {[%clk 00:45:14]} {[%emt
00:00:06]} 2. d4 {[%clk 00:45:23]} {[%emt 00:00:02]} d5 {[%clk 00:45:21]}
{[%emt 00:00:03]} 3. exd5 {[%clk 00:45:31]} {[%emt 00:00:02]} cxd5 {[%clk
00:45:27]} {[%emt 00:00:03]} 4. Bd3 {[%clk 00:45:39]} {[%emt 00:00:02]} Nc6
{[%clk 00:45:31]} {[%emt 00:00:06]} 5. c3 {[%clk 00:45:47]} {[%emt 00:00:03]}
Qc7 {[%clk 00:45:36]} {[%emt 00:00:05]} 6. h3 {[%clk 00:45:56]} {[%emt
00:00:02]} g6 {[%clk 00:45:43]} {[%emt 00:00:02]} 7. Nf3 {[%clk 00:45:59]}
{[%emt 00:00:07]} Bf5 {[%clk 00:45:30]} {[%emt 00:00:23]} 8. Bb5 {[%clk
00:45:44]} {[%emt 00:00:25]} Bg7 {[%clk 00:44:34]} {[%emt 00:01:06]} 9. O-O
{[%clk 00:45:17]} {[%emt 00:00:37]} Nf6 {[%clk 00:42:51]} {[%emt 00:01:53]} 10.
Re1 {[%clk 00:45:13]} {[%emt 00:00:14]} O-O {[%clk 00:42:49]} {[%emt 00:00:11]}
11. Nbd2 {[%clk 00:44:34]} {[%emt 00:00:50]} Rac8 {[%clk 00:41:46]} {[%emt
00:01:13]} 12. Bxc6 {[%clk 00:39:42]} {[%emt 00:05:01]} bxc6 {[%clk 00:39:49]}
{[%emt 00:02:07]} 13. Nb3 {[%clk 00:39:30]} {[%emt 00:00:22]} Ne4 {[%clk
00:38:45]} {[%emt 00:01:16]} 14. Ng5 {[%clk 00:37:02]} {[%emt 00:02:38]} e5
{[%clk 00:37:32]} {[%emt 00:01:22]} 15. Nxe4 {[%clk 00:34:33]} {[%emt
00:02:39]} Bxe4 {[%clk 00:34:37]} {[%emt 00:03:06]} 16. Be3 {[%clk 00:32:38]}
{[%emt 00:02:04]} Bf5 {[%clk 00:32:37]} {[%emt 00:02:10]} 17. Nc5 {[%clk
00:28:50]} {[%emt 00:03:58]} e4 {[%clk 00:27:48]} {[%emt 00:04:59]} 18. Qd2
{[%clk 00:27:43]} {[%emt 00:01:16]} f6 {[%clk 00:27:27]} {[%emt 00:00:33]} 19.
g4 {[%clk 00:23:59]} {[%emt 00:03:54]} Bd7 {[%clk 00:27:10]} {[%emt 00:00:26]}
20. Bf4 {[%clk 00:24:02]} {[%emt 00:00:08]} Qd8 {[%clk 00:27:17]} {[%emt
00:00:01]} 21. Bd6 {[%clk 00:23:21]} {[%emt 00:00:51]} Rf7 {[%clk 00:26:31]}
{[%emt 00:00:56]} 22. Qf4 {[%clk 00:20:14]} {[%emt 00:03:18]} g5 {[%clk
00:26:10]} {[%emt 00:00:32]} 23. Qg3 {[%clk 00:18:21]} {[%emt 00:02:03]} f5
{[%clk 00:26:06]} {[%emt 00:00:13]} 24. f4 {[%clk 00:16:39]} {[%emt 00:01:53]}
fxg4 {[%clk 00:24:50]} {[%emt 00:01:25]} 25. hxg4 {[%clk 00:16:15]} {[%emt
00:00:34]} gxf4 {[%clk 00:23:31]} {[%emt 00:01:29]} 26. Bxf4 {[%clk 00:16:11]}
{[%emt 00:00:14]} Qf6 {[%clk 00:23:20]} {[%emt 00:00:21]} 27. Rf1 {[%clk
00:14:24]} {[%emt 00:01:58]} Qg6 {[%clk 00:21:54]} {[%emt 00:01:36]} 28. Nxd7
{[%clk 00:12:50]} {[%emt 00:01:44]} Rxd7 {[%clk 00:22:03]} {[%emt 00:00:01]} 29.
Kg2 {[%clk 00:12:44]} {[%emt 00:00:16]} c5 {[%clk 00:21:07]} {[%emt 00:01:05]}
30. dxc5 {[%clk 00:11:39]} {[%emt 00:01:16]} Rxc5 {[%clk 00:21:11]} {[%emt
00:00:06]} 31. Be3 {[%clk 00:10:59]} {[%emt 00:00:50]} Rb5 {[%clk 00:21:10]}
{[%emt 00:00:10]} 32. b3 {[%clk 00:08:14]} {[%emt 00:02:57]} h5 {[%clk
00:17:14]} {[%emt 00:04:06]} 33. Rf5 {[%clk 00:05:56]} {[%emt 00:02:28]} d4
{[%clk 00:08:15]} {[%emt 00:09:08]} 34. Rxb5 {[%clk 00:05:01]} {[%emt
00:01:05]} dxe3 {[%clk 00:08:24]} 35. Rxh5 {[%clk 00:03:28]} {[%emt 00:01:43]}
Rd2+ {[%clk 00:08:18]} {[%emt 00:00:16]} 36. Kf1 {[%clk 00:02:07]} {[%emt
00:01:31]} Rf2+ {[%clk 00:06:18]} {[%emt 00:02:10]} 37. Kg1 {[%clk 00:02:00]}
{[%emt 00:00:18]} Rf3 {[%clk 00:06:26]} 38. Qg2 {[%clk 00:01:44]} {[%emt
00:00:27]} Rf4 {[%clk 00:04:40]} {[%emt 00:01:56]} 39. Kh1 {[%clk 00:01:09]}
{[%emt 00:00:45]} Rxg4 {[%clk 00:03:28]} {[%emt 00:01:22]} 40. Qh2 {[%clk
00:01:14]} {[%emt 00:00:05]} e2 {[%clk 00:03:04]} {[%emt 00:00:34]} 41. Rc5
{[%clk 00:00:32]} {[%emt 00:00:52]} Qf6 {[%clk 00:02:32]} {[%emt 00:00:36]} 42.
Rc8+ {[%clk 00:00:27]} {[%emt 00:00:21]} Bf8 {[%clk 00:02:20]} {[%emt
00:00:23]} 43. Qxe2 {[%clk 00:00:14]} {[%emt 00:00:22]} Qh6+ {[%clk 00:02:11]}
{[%emt 00:00:19]} 44. Qh2 {[%clk 00:00:19]} {[%emt 00:00:05]} Rh4 {[%clk
00:02:19]} 45. Rg1+ {[%clk 00:00:18]} {[%emt 00:00:12]} Kh7 {[%clk 00:01:01]}
{[%emt 00:01:29]} 46. Rg2 {[%clk 00:00:12]} {[%emt 00:00:16]} Qc1+ {[%clk
00:01:06]} {[%emt 00:00:04]} 0-1

[Event "FIDE U16 Olympiad_boards_1-80"]
[Site "Eindhoven, Netherlands"]
[Date "2023.08.14"]
[Round "2.55"]
[White "Agasarov, Benik"]
[Black "Southcott-Moyers, Indy"]
[Result "1/2-1/2"]
[TimeControl "2700+10"]
[WhiteElo "2182"]
[BlackElo "1983"]

1. d4 {[%clk 00:45:17]} {[%emt 00:00:01]} d5 {[%clk 00:45:19]} {[%emt
00:00:02]} 2. Nf3 {[%clk 00:45:24]} {[%emt 00:00:03]} Nf6 {[%clk 00:45:27]}
{[%emt 00:00:01]} 3. Bf4 {[%clk 00:45:32]} {[%emt 00:00:03]} c5 {[%clk
00:44:47]} {[%emt 00:00:49]} 4. e3 {[%clk 00:45:40]} {[%emt 00:00:02]} Nc6
{[%clk 00:44:55]} {[%emt 00:00:02]} 5. Nbd2 {[%clk 00:45:48]} {[%emt 00:00:03]}
cxd4 {[%clk 00:44:05]} {[%emt 00:01:00]} 6. exd4 {[%clk 00:45:57]} Bf5 {[%clk
00:44:14]} 7. Bb5 {[%clk 00:46:05]} {[%emt 00:00:02]} Qb6 {[%clk 00:39:01]}
{[%emt 00:05:24]} 8. c4 {[%clk 00:46:07]} {[%emt 00:00:07]} e6 {[%clk
00:37:07]} {[%emt 00:02:05]} 9. a4 {[%clk 00:38:02]} {[%emt 00:08:16]} Bb4
{[%clk 00:33:34]} {[%emt 00:03:42]} 10. O-O {[%clk 00:34:21]} {[%emt 00:03:51]}
O-O {[%clk 00:30:47]} {[%emt 00:02:56]} 11. c5 {[%clk 00:33:40]} {[%emt
00:00:51]} Qd8 {[%clk 00:30:34]} {[%emt 00:00:24]} 12. Nb3 {[%clk 00:28:33]}
{[%emt 00:05:17]} a5 {[%clk 00:26:00]} {[%emt 00:04:44]} 13. Nc1 {[%clk
00:27:29]} {[%emt 00:01:14]} Bg4 {[%clk 00:22:08]} {[%emt 00:04:02]} 14. Bxc6
{[%clk 00:27:32]} {[%emt 00:00:07]} bxc6 {[%clk 00:22:15]} {[%emt 00:00:02]} 15.
Nd3 {[%clk 00:27:41]} {[%emt 00:00:01]} Qc8 {[%clk 00:21:11]} {[%emt 00:01:15]}
16. h3 {[%clk 00:26:38]} {[%emt 00:01:13]} Bh5 {[%clk 00:18:56]} {[%emt
00:02:25]} 17. g4 {[%clk 00:18:57]} {[%emt 00:07:50]} Bg6 {[%clk 00:19:03]}
{[%emt 00:00:03]} 18. Nfe5 {[%clk 00:19:06]} {[%emt 00:00:01]} Bxd3 {[%clk
00:16:37]} {[%emt 00:02:37]} 19. Qxd3 {[%clk 00:19:11]} {[%emt 00:00:04]} Nd7
{[%clk 00:16:33]} {[%emt 00:00:15]} 20. Nxd7 {[%clk 00:18:15]} {[%emt
00:01:06]} Qxd7 {[%clk 00:16:42]} {[%emt 00:00:01]} 21. Bd6 {[%clk 00:18:23]}
{[%emt 00:00:02]} Rfe8 {[%clk 00:16:44]} {[%emt 00:00:07]} 22. f4 {[%clk
00:18:32]} {[%emt 00:00:02]} Qb7 {[%clk 00:14:44]} {[%emt 00:02:09]} 23. Rf3
{[%clk 00:17:56]} {[%emt 00:00:46]} Qa6 {[%clk 00:13:19]} {[%emt 00:01:36]} 24.
Raf1 {[%clk 00:17:09]} {[%emt 00:00:56]} Qxd3 {[%clk 00:13:26]} {[%emt
00:00:04]} 25. Rxd3 {[%clk 00:17:18]} f6 {[%clk 00:13:07]} {[%emt 00:00:29]} 26.
Rff3 {[%clk 00:16:58]} {[%emt 00:00:29]} Kf7 {[%clk 00:13:04]} {[%emt
00:00:14]} 27. Kf2 {[%clk 00:17:03]} {[%emt 00:00:05]} Rac8 {[%clk 00:12:35]}
{[%emt 00:00:39]} 28. Rb3 {[%clk 00:17:09]} {[%emt 00:00:04]} Ra8 {[%clk
00:12:23]} {[%emt 00:00:22]} 29. Ke2 {[%clk 00:17:13]} {[%emt 00:00:06]} Rh8
{[%clk 00:11:03]} {[%emt 00:01:29]} 30. h4 {[%clk 00:15:41]} {[%emt 00:01:42]}
h5 {[%clk 00:08:22]} {[%emt 00:02:51]} 31. g5 {[%clk 00:15:51]} f5 {[%clk
00:08:32]} {[%emt 00:00:02]} 32. Kd1 {[%clk 00:15:55]} {[%emt 00:00:05]} g6
{[%clk 00:07:31]} {[%emt 00:01:11]} 33. Kc2 {[%clk 00:16:04]} {[%emt 00:00:01]}
Ra7 {[%clk 00:07:25]} {[%emt 00:00:16]} 34. Rfe3 {[%clk 00:15:38]} {[%emt
00:00:35]} Rb7 {[%clk 00:06:52]} {[%emt 00:00:44]} 35. Re2 {[%clk 00:15:37]}
{[%emt 00:00:11]} Re8 {[%clk 00:06:44]} {[%emt 00:00:18]} 36. Kb1 {[%clk
00:14:52]} {[%emt 00:00:55]} Kg8 {[%clk 00:06:35]} {[%emt 00:00:20]} 37. Ka2
{[%clk 00:14:58]} {[%emt 00:00:03]} Kf7 {[%clk 00:06:43]} {[%emt 00:00:01]} 38.
Rbe3 {[%clk 00:15:07]} {[%emt 00:00:02]} Rd7 {[%clk 00:06:23]} {[%emt
00:00:30]} 39. Be5 {[%clk 00:14:35]} {[%emt 00:00:42]} Rb7 {[%clk 00:06:25]}
{[%emt 00:00:08]} 40. Rb3 {[%clk 00:14:43]} {[%emt 00:00:02]} Kg8 {[%clk
00:06:23]} {[%emt 00:00:11]} 41. Ree3 {[%clk 00:14:24]} {[%emt 00:00:29]} Kf7
{[%clk 00:06:27]} {[%emt 00:00:06]} 42. Kb1 {[%clk 00:14:30]} {[%emt 00:00:04]}
Kg8 {[%clk 00:06:30]} {[%emt 00:00:07]} 43. Kc2 {[%clk 00:14:38]} {[%emt
00:00:01]} Kf7 {[%clk 00:06:39]} {[%emt 00:00:02]} 44. Bd6 {[%clk 00:14:23]}
{[%emt 00:00:25]} Kg8 {[%clk 00:06:40]} {[%emt 00:00:09]} 45. Re2 {[%clk
00:14:28]} {[%emt 00:00:06]} Kf7 {[%clk 00:06:44]} {[%emt 00:00:05]} 46. Rbe3
{[%clk 00:14:33]} {[%emt 00:00:05]} Rd7 {[%clk 00:06:50]} {[%emt 00:00:04]} 47.
Re5 {[%clk 00:14:36]} {[%emt 00:00:08]} Rb7 {[%clk 00:06:37]} {[%emt 00:00:22]}
48. R2e3 {[%clk 00:14:31]} {[%emt 00:00:15]} Rd7 {[%clk 00:06:41]} {[%emt
00:00:06]} 49. Rb3 {[%clk 00:14:33]} {[%emt 00:00:08]} Rb7 {[%clk 00:06:50]} 50.
Ree3 {[%clk 00:14:41]} {[%emt 00:00:02]} Kg8 {[%clk 00:06:56]} {[%emt
00:00:04]} 51. Re1 {[%clk 00:13:50]} {[%emt 00:01:01]} Kf7 {[%clk 00:06:38]}
{[%emt 00:00:28]} 52. Re2 {[%clk 00:13:49]} {[%emt 00:00:12]} Kg8 {[%clk
00:06:45]} {[%emt 00:00:03]} 53. Be5 {[%clk 00:13:29]} {[%emt 00:00:30]} Kf7
{[%clk 00:06:47]} {[%emt 00:00:08]} 54. Bd6 {[%clk 00:13:06]} {[%emt 00:00:34]}
Kg8 {[%clk 00:06:32]} {[%emt 00:00:24]} 55. Re1 {[%clk 00:13:13]} {[%emt
00:00:02]} Kf7 {[%clk 00:06:41]} {[%emt 00:00:02]} 56. Re5 {[%clk 00:13:15]}
{[%emt 00:00:07]} Kg8 {[%clk 00:06:39]} {[%emt 00:00:12]} 57. Ree3 {[%clk
00:12:22]} {[%emt 00:01:03]} Kf7 {[%clk 00:06:46]} {[%emt 00:00:03]} 58. Red3
{[%clk 00:12:24]} {[%emt 00:00:08]} Kg8 {[%clk 00:06:46]} {[%emt 00:00:10]}
1/2-1/2

[Event "FIDE U16 Olympiad_boards_1-80"]
[Site "Eindhoven, Netherlands"]
[Date "2023.08.14"]
[Round "2.56"]
[White "Rida, Ruqayyah"]
[Black "Hayrapetyan, Nvard"]
[Result "0-1"]
[TimeControl "2700+10"]
[WhiteElo "1765"]
[BlackElo "1530"]

1. e4 {[%clk 00:45:19]} c5 {[%clk 00:45:19]} {[%emt 00:00:02]} 2. Nf3 {[%clk
00:45:27]} {[%emt 00:00:02]} e6 {[%clk 00:45:27]} {[%emt 00:00:02]} 3. d4
{[%clk 00:45:35]} {[%emt 00:00:02]} cxd4 {[%clk 00:45:36]} {[%emt 00:00:01]} 4.
Nxd4 {[%clk 00:45:42]} {[%emt 00:00:03]} Nf6 {[%clk 00:45:43]} {[%emt
00:00:03]} 5. Nc3 {[%clk 00:45:49]} {[%emt 00:00:02]} Nc6 {[%clk 00:45:52]}
{[%emt 00:00:02]} 6. Nxc6 {[%clk 00:45:46]} {[%emt 00:00:13]} bxc6 {[%clk
00:46:00]} {[%emt 00:00:02]} 7. e5 {[%clk 00:45:44]} {[%emt 00:00:12]} Nd5
{[%clk 00:46:08]} {[%emt 00:00:02]} 8. Ne4 {[%clk 00:45:52]} {[%emt 00:00:01]}
Qc7 {[%clk 00:46:16]} {[%emt 00:00:03]} 9. f4 {[%clk 00:45:48]} {[%emt
00:00:13]} Rb8 {[%clk 00:46:23]} {[%emt 00:00:04]} 10. c4 {[%clk 00:43:52]}
{[%emt 00:02:06]} Bb4+ {[%clk 00:46:30]} {[%emt 00:00:03]} 11. Ke2 {[%clk
00:43:45]} {[%emt 00:00:16]} O-O {[%clk 00:46:26]} {[%emt 00:00:15]} 12. a3
{[%clk 00:35:25]} {[%emt 00:08:30]} Be7 {[%clk 00:46:20]} {[%emt 00:00:16]} 13.
cxd5 {[%clk 00:34:33]} {[%emt 00:01:02]} cxd5 {[%clk 00:46:28]} {[%emt
00:00:02]} 14. Nf2 {[%clk 00:31:54]} {[%emt 00:02:48]} f6 {[%clk 00:36:30]}
{[%emt 00:10:09]} 15. exf6 {[%clk 00:20:12]} {[%emt 00:11:52]} Bxf6 {[%clk
00:36:03]} {[%emt 00:00:37]} 16. Rb1 {[%clk 00:19:15]} {[%emt 00:01:07]} Ba6+
{[%clk 00:25:55]} {[%emt 00:10:18]} 17. Kf3 {[%clk 00:19:05]} {[%emt 00:00:19]}
Bb7 {[%clk 00:25:24]} {[%emt 00:00:42]} 18. Bd3 {[%clk 00:07:52]} {[%emt
00:11:23]} e5 {[%clk 00:24:33]} {[%emt 00:01:01]} 19. Bc2 {[%clk 00:06:29]}
{[%emt 00:01:32]} e4+ {[%clk 00:22:01]} {[%emt 00:02:43]} 20. Kg3 {[%clk
00:05:51]} {[%emt 00:00:47]} Qb6 {[%clk 00:15:08]} {[%emt 00:07:03]} 21. Bb3
{[%clk 00:03:55]} {[%emt 00:02:06]} Kh8 {[%clk 00:09:43]} {[%emt 00:05:35]} 22.
Bxd5 {[%clk 00:03:01]} {[%emt 00:01:04]} Bd4 {[%clk 00:09:51]} {[%emt
00:00:03]} 23. Nxe4 {[%clk 00:01:56]} {[%emt 00:01:15]} Bxd5 {[%clk 00:09:56]}
{[%emt 00:00:04]} 24. Nc3 {[%clk 00:01:23]} {[%emt 00:00:43]} Bf2+ {[%clk
00:09:51]} {[%emt 00:00:15]} 25. Kh3 {[%clk 00:01:13]} {[%emt 00:00:21]} Qh6+
{[%clk 00:09:54]} {[%emt 00:00:06]} 26. Kg4 {[%clk 00:01:15]} {[%emt 00:00:08]}
Qh4# {[%clk 00:10:03]} {[%emt 00:00:02]} 0-1

[Event "FIDE U16 Olympiad_boards_1-80"]
[Site "Eindhoven, Netherlands"]
[Date "2023.08.14"]
[Round "2.57"]
[White "Gurel, Ediz"]
[Black "Ritzerveld, Noah"]
[Result "1-0"]
[TimeControl "2700+10"]
[WhiteElo "2302"]
[BlackElo "1959"]

1. e4 {[%clk 00:45:18]} {[%emt 00:00:02]} e5 {[%clk 00:45:18]} {[%emt
00:00:02]} 2. Nf3 {[%clk 00:45:22]} {[%emt 00:00:06]} Nc6 {[%clk 00:45:27]}
{[%emt 00:00:02]} 3. Bb5 {[%clk 00:45:29]} {[%emt 00:00:03]} a6 {[%clk
00:45:35]} {[%emt 00:00:01]} 4. Ba4 {[%clk 00:45:38]} {[%emt 00:00:01]} Nf6
{[%clk 00:45:41]} {[%emt 00:00:04]} 5. O-O {[%clk 00:45:44]} {[%emt 00:00:04]}
Be7 {[%clk 00:45:48]} {[%emt 00:00:02]} 6. Bxc6 {[%clk 00:45:50]} {[%emt
00:00:05]} dxc6 {[%clk 00:45:56]} {[%emt 00:00:02]} 7. d3 {[%clk 00:45:59]}
{[%emt 00:00:02]} Bd6 {[%clk 00:45:44]} {[%emt 00:00:22]} 8. Nbd2 {[%clk
00:46:04]} {[%emt 00:00:05]} Be6 {[%clk 00:44:38]} {[%emt 00:01:15]} 9. d4
{[%clk 00:46:08]} {[%emt 00:00:06]} Nd7 {[%clk 00:42:31]} {[%emt 00:02:17]} 10.
dxe5 {[%clk 00:46:13]} {[%emt 00:00:06]} Nxe5 {[%clk 00:41:36]} {[%emt
00:01:05]} 11. Nxe5 {[%clk 00:46:21]} {[%emt 00:00:02]} Bxe5 {[%clk 00:41:44]}
{[%emt 00:00:02]} 12. f4 {[%clk 00:46:29]} Bd6 {[%clk 00:37:59]} {[%emt
00:03:54]} 13. f5 {[%clk 00:46:25]} {[%emt 00:00:15]} Bd7 {[%clk 00:37:23]}
{[%emt 00:00:46]} 14. Nc4 {[%clk 00:46:30]} {[%emt 00:00:06]} Bc5+ {[%clk
00:36:49]} {[%emt 00:00:43]} 15. Kh1 {[%clk 00:46:38]} {[%emt 00:00:02]} Qe7
{[%clk 00:36:02]} {[%emt 00:00:58]} 16. Bf4 {[%clk 00:46:32]} {[%emt 00:00:16]}
O-O-O {[%clk 00:34:48]} {[%emt 00:01:24]} 17. Qe1 {[%clk 00:44:40]} {[%emt
00:02:02]} Kb8 {[%clk 00:28:54]} {[%emt 00:06:03]} 18. b4 {[%clk 00:36:53]}
{[%emt 00:07:57]} Bxb4 {[%clk 00:24:31]} {[%emt 00:04:34]} 19. Qg3 {[%clk
00:36:42]} {[%emt 00:00:21]} Bc8 {[%clk 00:22:49]} {[%emt 00:01:52]} 20. Rab1
{[%clk 00:35:44]} {[%emt 00:01:08]} Bc5 {[%clk 00:18:52]} {[%emt 00:04:07]} 21.
Na5 {[%clk 00:29:05]} {[%emt 00:06:49]} Ka8 {[%clk 00:17:08]} {[%emt 00:01:53]}
22. Bxc7 {[%clk 00:27:58]} {[%emt 00:01:18]} Rd7 {[%clk 00:15:49]} {[%emt
00:01:30]} 23. Qxg7 {[%clk 00:27:10]} {[%emt 00:00:57]} Re8 {[%clk 00:14:51]}
{[%emt 00:01:08]} 24. Bg3 {[%clk 00:26:49]} {[%emt 00:00:31]} Bd4 {[%clk
00:10:16]} {[%emt 00:04:45]} 25. e5 {[%clk 00:23:40]} {[%emt 00:03:19]} Bxe5
{[%clk 00:09:01]} {[%emt 00:01:25]} 26. Qxe5 {[%clk 00:23:24]} {[%emt
00:00:26]} Qxe5 {[%clk 00:08:51]} {[%emt 00:00:20]} 27. Bxe5 {[%clk 00:23:33]}
{[%emt 00:00:01]} Rxe5 {[%clk 00:08:05]} {[%emt 00:00:56]} 28. Nc4 {[%clk
00:23:42]} Rc5 {[%clk 00:07:57]} {[%emt 00:00:19]} 29. Nb6+ {[%clk 00:23:50]}
{[%emt 00:00:02]} Kb8 {[%clk 00:08:03]} {[%emt 00:00:04]} 30. Nxd7+ {[%clk
00:23:33]} {[%emt 00:00:26]} Bxd7 {[%clk 00:08:12]} 31. g4 {[%clk 00:19:56]}
{[%emt 00:03:47]} Rxc2 {[%clk 00:08:14]} {[%emt 00:00:09]} 32. Rfd1 {[%clk
00:18:59]} {[%emt 00:01:07]} Kc8 {[%clk 00:05:52]} {[%emt 00:02:32]} 33. Rxb7
{[%clk 00:16:57]} {[%emt 00:02:11]} Kxb7 {[%clk 00:06:01]} {[%emt 00:00:02]} 34.
Rxd7+ {[%clk 00:17:06]} Kb6 {[%clk 00:05:47]} {[%emt 00:00:25]} 35. Rxf7 {[%clk
00:17:09]} {[%emt 00:00:07]} Rxa2 {[%clk 00:04:03]} {[%emt 00:01:53]} 36. f6
{[%clk 00:13:58]} {[%emt 00:03:22]} Rf2 {[%clk 00:03:41]} {[%emt 00:00:32]} 37.
g5 {[%clk 00:14:07]} {[%emt 00:00:02]} a5 {[%clk 00:03:30]} {[%emt 00:00:21]}
38. Rxh7 {[%clk 00:14:12]} {[%emt 00:00:05]} a4 {[%clk 00:03:28]} {[%emt
00:00:11]} 39. Rh3 {[%clk 00:14:02]} {[%emt 00:00:19]} Rf5 {[%clk 00:03:11]}
{[%emt 00:00:27]} 40. g6 {[%clk 00:13:42]} {[%emt 00:00:30]} Rxf6 {[%clk
00:03:07]} {[%emt 00:00:15]} 41. g7 {[%clk 00:13:51]} {[%emt 00:00:01]} Rg6
{[%clk 00:02:01]} {[%emt 00:01:15]} 42. Rg3 {[%clk 00:14:01]} {[%emt 00:00:01]}
1-0